fUST/lending_fUST_20241121
["ID","MTS","AMOUNT","RATE_DAILY","PERIOD"]
[342821639,1732150240702,-500.0,0.00022145,2]
[342821640,1732150240712,-500.0,0.00022145,2]
[342821641,1732150240724,-159.03310752,0.00022145,2]
[342821642,1732150240744,-340.96689248,0.00022145,2]
[342821643,1732150240754,-500.0,0.00022145,2]
[342821644,1732150240763,-500.0,0.00022145,2]
[342821645,1732150240772,-500.0,0.00022145,2]
[342821646,1732150240781,-500.0,0.00022145,2]
[342821647,1732150240791,-500.0,0.00022145,2]
[342821648,1732150240800,-500.0,0.00022145,2]
[342821649,1732150240809,-4261.86,0.00022145,2]
[342821650,1732150240819,-500.0,0.00022145,2]
[342821651,1732150240828,-500.0,0.00022145,2]
[342821652,1732150240837,-500.0,0.00022145,2]
[342821653,1732150240846,-506.38,0.00022145,2]
[342821654,1732150240868,-500.0,0.00022145,2]
[342821655,1732150240877,-500.0,0.00022145,2]
[342821656,1732150240886,-500.0,0.00022145,2]
[342821657,1732150240896,-500.0,0.00022145,2]
[342821658,1732150240905,-2070.57,0.00022145,2]
[342821659,1732150240915,-500.0,0.00022145,2]
[342821660,1732150240924,-500.0,0.00022145,2]
[342821661,1732150240933,-500.0,0.00022145,2]
[342821662,1732150240942,-500.0,0.00022145,2]
[342821663,1732150240951,-500.0,0.00022145,2]
[342821664,1732150240961,-500.0,0.00022145,2]
[342821665,1732150240972,-500.0,0.00022145,2]
[342821666,1732150240981,-500.00595325,0.00022145,2]
[342821667,1732150240990,-500.0,0.00022145,2]
[342821668,1732150241000,-500.0,0.00022145,2]
[342821669,1732150241009,-500.0,0.00022145,2]
[342821670,1732150241018,-500.0,0.00022145,2]
[342821671,1732150241027,-500.0,0.00022145,2]
[342821672,1732150241136,-356.07335512,0.00022145,2]
[342821673,1732150241146,-500.0,0.00022145,2]
[342821674,1732150241155,-500.0,0.00022145,2]
[342821675,1732150241164,-500.0,0.00022145,2]
[342821676,1732150241173,-500.0,0.00022145,2]
[342821677,1732150241182,-500.0,0.00022145,2]
[342821678,1732150241190,-500.0,0.00022145,2]
[342821679,1732150241200,-500.0,0.00022145,2]
[342821680,1732150241209,-500.0,0.00022145,2]
[342821681,1732150241221,-501.45794595,0.00022145,2]
[342821682,1732150241233,-500.0,0.00022145,2]
[342821683,1732150241242,-500.0,0.00022145,2]
[342821684,1732150241251,-500.0,0.00022145,2]
[342821685,1732150241260,-500.0,0.00022145,2]
[342821686,1732150241271,-500.0,0.00022145,2]
[342821687,1732150241280,-500.0,0.00022145,2]
[342821688,1732150241289,-500.0,0.00022145,2]
[342821689,1732150241299,-502.11329868,0.00022145,2]
[342821690,1732150241308,-500.0,0.00022145,2]
[342821691,1732150241318,-500.0,0.00022145,2]
[342821692,1732150241327,-500.0,0.00022145,2]
[342821693,1732150241336,-500.0,0.00022145,2]
[342821694,1732150241345,-500.0,0.00022145,2]
[342821695,1732150241354,-500.0,0.00022145,2]
[342821696,1732150241363,-500.0,0.00022145,2]
[342821697,1732150241374,-500.0,0.00022145,2]
[342821698,1732150241384,-500.0,0.00022145,2]
[342821699,1732150241395,-500.0,0.00022145,2]
[342821700,1732150241404,-426.24,0.00022145,2]
[342821701,1732150241419,-500.0,0.00022145,2]
[342821702,1732150241428,-500.0,0.00022145,2]
[342821703,1732150241437,-500.0,0.00022145,2]
[342821704,1732150241446,-500.0,0.00022145,2]
[342821705,1732150241456,-500.0,0.00022145,2]
[342821706,1732150241465,-500.0,0.00022145,2]
[342821707,1732150241477,-500.0,0.00022145,2]
[342821708,1732150241487,-219.82400758,0.00022145,2]
[342821709,1732150241495,-521.03104245,0.00022145,2]
[342821710,1732150241505,-500.0,0.00022418,2]
[342821711,1732150241514,-500.0,0.00022419,2]
[342821712,1732150241523,-500.0,0.00022419,2]
[342821713,1732150241532,-4261.86,0.00022419,2]
[342821714,1732150241541,-500.0,0.00022419,2]
[342821715,1732150241551,-500.0,0.00022419,2]
[342821716,1732150241560,-2070.57,0.00022419,2]
[342821717,1732150241570,-500.0,0.00022419,2]
[342821718,1732150241579,-500.0,0.00022419,2]
[342821719,1732150241588,-500.0,0.00022419,2]
[342821720,1732150241600,-500.0,0.00022419,2]
[342821721,1732150241609,-500.0,0.00022419,2]
[342821722,1732150241619,-500.0,0.00022419,2]
[342821723,1732150241628,-500.0,0.00022419,2]
[342821724,1732150241638,-500.0,0.00022419,2]
[342821725,1732150241647,-500.0,0.00022419,2]
[342821726,1732150241657,-500.0,0.00022419,2]
[342821727,1732150241666,-500.0,0.00022419,2]
[342821728,1732150241675,-500.0,0.00022692,2]
[342821729,1732150241685,-4261.86,0.00022693,2]
[342821730,1732150241694,-500.0,0.00022693,2]
[342821731,1732150241703,-2070.57,0.00022693,2]
[342821732,1732150241712,-500.0,0.00022693,2]
[342821733,1732150241723,-270.62240899,0.00022965,2]
[342821734,1732150241737,-215.86175349,0.00022965,2]
[342821735,1732150241746,-186.3624275,0.00022965,2]
[342821736,1732150241755,-500.0,0.00022965,2]
[342821737,1732150241764,-496.00542397,0.00022965,2]
[342821738,1732150241773,-500.0,0.00022965,2]
[342821739,1732150241782,-500.0,0.00022966,2]
[342821740,1732150241792,-358.27865314,0.00022966,2]
[342821741,1732150241801,-4261.86,0.00022967,2]
[342821742,1732150241810,-2070.57,0.00022967,2]
[342821743,1732150241819,-353.93,0.00022967,2]
[342821744,1732150241830,-535.09166172,0.00023025,2]
[342821745,1732150241839,-465.93175665,0.0002303,2]
[342821746,1732150241848,-500.0,0.00023088,2]
[342821747,1732150241858,-707.58,0.00023115,3]
[342821748,1732150241867,-500.0,0.00023124,2]
[342821749,1732150241876,-500.0,0.00023124,2]
[342821750,1732150241886,-500.0,0.00023125,2]
[342821751,1732150241895,-500.0,0.00023125,2]
[342821752,1732150241904,-496.99188658,0.00023125,2]
[342821753,1732150241915,-500.0,0.00023125,2]
[342821754,1732150241925,-500.0,0.00023125,2]
[342821755,1732150241935,-510.65189682,0.00023125,2]
[342821756,1732150241944,-177.66262691,0.00023125,2]
[342821757,1732150241953,-503.13356963,0.00023125,2]
[342821758,1732150241962,-522.03705276,0.00023125,2]
[342821759,1732150241975,-500.0,0.00023125,2]
[342821760,1732150241983,-500.0,0.00023125,2]
[342821761,1732150241992,-500.0,0.00023125,2]
[342821762,1732150242001,-500.0,0.00023125,2]
[342821763,1732150242011,-500.0,0.00023125,2]
[342821764,1732150242020,-500.0,0.00023125,2]
[342821765,1732150242029,-500.0,0.00023125,2]
[342821766,1732150242038,-500.0,0.00023125,2]
[342821767,1732150242051,-500.0,0.00023125,2]
[342821768,1732150242060,-500.0,0.00023125,2]
[342821769,1732150242069,-505.13129211,0.00023125,2]
[342821770,1732150242079,-500.0,0.00023125,2]
[342821771,1732150242089,-500.0,0.00023125,2]
[342821772,1732150242100,-507.9262674,0.00023125,2]
[342821773,1732150242110,-500.0,0.00023125,2]
[342821774,1732150242120,-500.0,0.00023125,2]
[342821775,1732150242130,-500.0,0.00023125,2]
[342821776,1732150242139,-500.0,0.00023125,2]
[342821777,1732150242147,-500.0,0.00023125,2]
[342821778,1732150242156,-500.0,0.00023125,2]
[342821779,1732150242165,-500.0,0.00023125,2]
[342821780,1732150242174,-500.0,0.00023125,2]
[342821781,1732150242183,-500.0,0.00023125,2]
[342821782,1732150242192,-500.0,0.00023125,2]
[342821783,1732150242202,-500.0,0.00023125,2]
[342821784,1732150242211,-500.0,0.00023125,2]
[342821785,1732150242222,-500.0,0.00023125,2]
[342821786,1732150242232,-500.0,0.00023125,2]
[342821787,1732150242240,-500.0,0.00023125,2]
[342821788,1732150242249,-500.0,0.00023125,2]
[342821789,1732150242258,-500.0,0.00023125,2]
[342821790,1732150242267,-147.82308737,0.00023125,7]
[342821804,1732150243699,-3.17691263,0.00023125,7]
[342821805,1732150243710,-184.864801,0.00023125,7]
[342821806,1732150243720,-151.0,0.00023125,7]
[342821807,1732150243730,-160.95501887,0.00023125,2]
[342821808,1732150243742,-339.04498113,0.00023125,2]
[342821809,1732150243751,-500.0,0.00023125,2]
[342821810,1732150243759,-500.0,0.00023125,2]
[342821811,1732150243772,-500.0,0.00023125,2]
[342821812,1732150243782,-500.0,0.00023125,2]
[342821813,1732150243793,-500.0,0.00023125,2]
[342821814,1732150243802,-500.0,0.00023125,2]
[342821815,1732150243812,-151.0,0.00023125,7]
[342821816,1732150243822,-151.0,0.00023125,7]
[342821817,1732150243831,-151.0,0.00023125,7]
[342821818,1732150243841,-500.0,0.00023125,2]
[342821819,1732150243851,-151.0,0.00023125,7]
[342821820,1732150243860,-293.52263519,0.00023125,2]
[342821821,1732150243869,-500.0,0.00023125,2]
[342821822,1732150243878,-298.30386166,0.00023125,2]
[342821823,1732150243887,-500.0,0.00023125,2]
[342821824,1732150243897,-310.45311993,0.00023125,2]
[342821825,1732150243909,-189.54688007,0.00023125,2]
[342821826,1732150243918,-500.0,0.00023125,2]
[342821827,1732150243927,-151.0,0.00023125,7]
[342821828,1732150243937,-151.0,0.00023125,7]
[342821829,1732150243947,-500.0,0.00023125,2]
[342821830,1732150243956,-500.0,0.00023125,2]
[342821831,1732150243966,-308.45311993,0.00023125,2]
[342821844,1732150246626,-191.54688007,0.00023125,2]
[342821846,1732150246636,-500.0,0.00023125,2]
[342821848,1732150246646,-500.0,0.00023125,2]
[342821849,1732150246654,-500.0,0.00023125,2]
[342821851,1732150246664,-500.0,0.00023125,2]
[342821853,1732150246673,-500.0,0.00023125,2]
[342821855,1732150246683,-500.0,0.00023125,2]
[342821856,1732150246692,-500.0,0.00023125,2]
[342821857,1732150246702,-151.0,0.00023125,7]
[342821858,1732150246712,-405.21393485,0.00023125,2]
[342821859,1732150246724,-495.54918508,0.00023125,2]
[342821860,1732150246737,-4.45081492,0.00023125,2]
[342821861,1732150246746,-343.11301024,0.00023125,2]
[342821862,1732150246758,-156.88698976,0.00023125,2]
[342821863,1732150246767,-424.27855458,0.00023125,2]
[342821879,1732151214492,-151.0,0.00023125,7]
[342821880,1732151214518,-151.0,0.00023125,7]
[342821887,1732151258167,-6067.0,0.00018,2]
[342821925,1732151431896,-316.09929999,0.00018,2]
[342821928,1732151431911,-632.52570001,0.00018,2]
[342821930,1732151431921,-192.85199999,0.00020488,2]
[342821940,1732151432016,-992.31212601,0.00020488,2]
[342821943,1732151432026,-1185.164126,0.00021172,2]
[342821945,1732151432036,-175.18903537,0.00021382,2]
[342821947,1732151432045,-175.18903537,0.00021418,2]
[342821949,1732151432054,-172.513907,0.00021469,2]
[342821951,1732151432063,-300.0,0.0002148,2]
[342821953,1732151432073,-300.0,0.00021481,2]
[342821955,1732151432082,-7407.0,0.00021481,2]
[342821957,1732151432092,-13681.68820649,0.00021482,2]
[342822046,1732151438317,-3148.690505,0.00021482,2]
[342822144,1732151740190,-151.0,0.00022418,7]
[342822187,1732152632625,-2082.60596251,0.00018,2]
[342822188,1732152632635,-4191.19284829,0.00019948,2]
[342822190,1732152638477,-2010.01679391,0.00019948,2]
[342822191,1732152638486,-300.0,0.00019989,2]
[342822192,1732152638496,-257.49782577,0.0001999,2]
[342822215,1732152643360,-213.06347947,0.0001999,2]
[342822216,1732152643371,-1454.30306326,0.0001999,2]
[342822217,1732152643385,-681.73646189,0.0001999,2]
[342822218,1732152643398,-36548.75673463,0.0001999,2]
[342822219,1732152643407,-710.92655604,0.00019997,2]
[342822220,1732152643417,-395.054708,0.00020097,2]
[342822221,1732152643426,-803.12648313,0.00020741,2]
[342822228,1732152646252,-946.43,0.00020741,2]
[342822274,1732153832495,-405.97622604,0.00018,2]
[342822275,1732153832504,-1378.32108312,0.00019802,2]
[342822284,1732153838560,-6891.53944307,0.00019802,2]
[342822285,1732153838570,-300.0,0.00019841,2]
[342822286,1732153838579,-300.0,0.00019841,2]
[342822287,1732153838588,-4681.0,0.00019842,2]
[342822288,1732153838597,-8269.86052619,0.0002001,2]
[342822289,1732153838605,-173.9479126,0.00020136,2]
[342822290,1732153838614,-315.32700553,0.00020262,4]
[342822291,1732153838623,-483.0419,0.00020263,2]
[342822292,1732153838632,-1096.9430134,0.00020425,2]
[342822293,1732153838642,-153.0,0.00020441,2]
[342822294,1732153838655,-8269.8605262,0.00020444,2]
[342822295,1732153838665,-4418.0602702,0.00020525,2]
[342822296,1732153838674,-153.0,0.00020541,2]
[342822297,1732153838683,-151.70393349,0.000207,2]
[342822298,1732153838693,-483.0419,0.00020948,2]
[342822299,1732153838703,-155.0321736,0.00021041,2]
[342822300,1732153838712,-420.0,0.00021608,2]
[342822301,1732153838721,-483.0419,0.00021633,2]
[342822302,1732153838731,-383.4564455,0.00021641,2]
[342822303,1732153838742,-1096.94301336,0.00021641,2]
[342822304,1732153838751,-214.3888195,0.00021644,2]
[342822305,1732153838760,-808.11693351,0.00021817,2]
[342822306,1732153838769,-420.0,0.00021825,2]
[342822307,1732153838778,-500.0,0.00021916,2]
[342822308,1732153838788,-500.0,0.00021916,2]
[342822309,1732153838797,-500.0,0.00021916,2]
[342822311,1732153838806,-500.0,0.00021916,2]
[342822312,1732153838815,-500.0,0.00021916,2]
[342822313,1732153838824,-500.0,0.00021916,2]
[342822314,1732153838834,-500.0,0.00021916,2]
[342822315,1732153838843,-500.0,0.00021916,2]
[342822316,1732153838852,-613.61775838,0.00021916,2]
[342822317,1732153838862,-500.0,0.00021916,2]
[342822318,1732153838871,-500.0,0.00021916,2]
[342822319,1732153838880,-500.0,0.00021916,2]
[342822320,1732153838889,-500.0,0.00021916,2]
[342822321,1732153838899,-500.0,0.00021916,2]
[342822322,1732153838908,-500.0,0.00021916,2]
[342822323,1732153838917,-500.0,0.00021916,2]
[342822324,1732153838927,-500.0,0.00021916,2]
[342822325,1732153838936,-500.0,0.00021916,2]
[342822326,1732153838945,-500.0,0.00021916,2]
[342822327,1732153838955,-500.0,0.00021916,2]
[342822328,1732153838964,-500.0,0.00021916,2]
[342822329,1732153838973,-500.0,0.00021916,2]
[342822330,1732153838982,-500.0,0.00021916,2]
[342822331,1732153838993,-500.0,0.00021916,2]
[342822332,1732153839002,-500.0,0.00021916,2]
[342822333,1732153839011,-500.0,0.00021916,2]
[342822334,1732153839020,-475.26067547,0.00021916,2]
[342822338,1732153840431,-24.73932453,0.00021916,2]
[342822339,1732153840441,-500.0,0.00021916,2]
[342822340,1732153840451,-651.57829703,0.00021916,2]
[342822341,1732153840461,-158.5506766,0.00021916,2]
[342822342,1732153840473,-341.4493234,0.00021916,2]
[342822343,1732153840484,-160.53276431,0.00021916,2]
[342822344,1732153840506,-189.24997285,0.00021916,2]
[342822345,1732153840515,-500.0,0.00021916,2]
[342822346,1732153840524,-500.0,0.00021916,2]
[342822347,1732153840534,-500.0,0.00021916,2]
[342822348,1732153840543,-500.0,0.00021916,2]
[342822349,1732153840553,-500.0,0.00021916,2]
[342822350,1732153840562,-500.0,0.00021916,2]
[342822351,1732153840571,-500.0,0.00021916,2]
[342822352,1732153840580,-500.0,0.00021916,2]
[342822353,1732153840590,-500.0,0.00021916,2]
[342822354,1732153840598,-500.0,0.00021916,2]
[342822355,1732153840608,-500.0,0.00021916,2]
[342822356,1732153840617,-500.0,0.00021916,2]
[342822357,1732153840626,-500.0,0.00021916,2]
[342822358,1732153840636,-500.0,0.00021916,2]
[342822359,1732153840646,-171.15039472,0.00021916,2]
[342822360,1732153840657,-500.0,0.00021916,2]
[342822361,1732153840666,-500.0,0.00021916,2]
[342822362,1732153840675,-500.0,0.00021916,2]
[342822363,1732153840685,-500.0,0.00021916,2]
[342822364,1732153840694,-500.0,0.00021916,2]
[342822365,1732153840703,-540.35355252,0.00021916,2]
[342822366,1732153840713,-151.0,0.00021916,2]
[342822367,1732153840722,-151.0,0.00021916,2]
[342822368,1732153840733,-155.05246201,0.00021917,2]
[342822369,1732153840745,-151.0,0.00021917,2]
[342822370,1732153840755,-151.0,0.00021917,2]
[342822371,1732153840764,-151.0,0.00021917,2]
[342822372,1732153840773,-506.9892774,0.00021917,2]
[342822373,1732153840782,-500.0,0.00021917,2]
[342822374,1732153840791,-500.0,0.00021917,2]
[342822375,1732153840800,-505.4907005,0.00021917,2]
[342822376,1732153840809,-151.741271,0.00021917,2]
[342822377,1732153840819,-513.42186989,0.00021917,2]
[342822378,1732153840831,-151.0,0.00021917,2]
[342822379,1732153840841,-151.0,0.00021917,2]
[342822380,1732153840850,-523.00131985,0.00021917,2]
[342822381,1732153840861,-509.40517817,0.00021917,2]
[342822382,1732153840871,-161.36070576,0.00021917,2]
[342822383,1732153840879,-506.62217917,0.00021917,2]
[342822384,1732153840889,-511.06757681,0.00021917,2]
[342822385,1732153840898,-507.15268725,0.00021917,2]
[342822386,1732153840907,-509.14269121,0.00021917,2]
[342822387,1732153840917,-505.25591956,0.00021917,2]
[342822388,1732153840927,-500.0,0.00021917,2]
[342822389,1732153840937,-504.91254648,0.00021917,2]
[342822390,1732153840947,-192.30488,0.00021917,2]
[342822391,1732153840957,-192.30488,0.00021917,2]
[342822392,1732153840966,-192.30488,0.00021917,2]
[342822393,1732153840975,-505.9947589,0.00021917,2]
[342822394,1732153840984,-192.30488,0.00021917,2]
[342822395,1732153840995,-151.731454,0.00021917,2]
[342822396,1732153841004,-151.0,0.00021917,2]
[342822397,1732153841014,-151.0,0.00021917,2]
[342822398,1732153841022,-224.133637,0.00021917,2]
[342822399,1732153841031,-152.83876,0.00021917,2]
[342822400,1732153841041,-152.210063,0.00021917,2]
[342822401,1732153841050,-152.890774,0.00021917,2]
[342822402,1732153841059,-508.59093393,0.00021917,2]
[342822403,1732153841069,-503.85802154,0.00021917,2]
[342822404,1732153841078,-612.84977739,0.00021917,2]
[342822405,1732153841087,-154.144648,0.00021917,2]
[342822406,1732153841095,-503.22932957,0.00021917,2]
[342822407,1732153841104,-263.57551759,0.00021917,2]
[342822408,1732153841113,-151.0,0.00021917,2]
[342822409,1732153841123,-151.0,0.00021917,2]
[342822410,1732153841132,-153.677981,0.00021917,2]
[342822411,1732153841141,-151.40253,0.00021917,2]
[342822412,1732153841150,-151.0,0.00021917,2]
[342822413,1732153841159,-151.0,0.00021917,2]
[342822414,1732153841169,-151.0,0.00021917,2]
[342822415,1732153841179,-151.0,0.00021917,2]
[342822416,1732153841188,-155.528434,0.00021917,2]
[342822417,1732153841197,-518.31358055,0.00021917,2]
[342822418,1732153841205,-500.0,0.00021917,2]
[342822419,1732153841215,-509.10630748,0.00021917,2]
[342822420,1732153841224,-179.76174258,0.00021917,2]
[342822421,1732153841234,-151.0,0.00021917,2]
[342822422,1732153841244,-151.0,0.00021917,2]
[342822423,1732153841253,-151.0,0.00021917,2]
[342822424,1732153841262,-151.0,0.00021917,2]
[342822425,1732153841271,-151.0,0.00021917,2]
[342822426,1732153841279,-151.0,0.00021917,2]
[342822427,1732153841288,-151.0,0.00021917,2]
[342822428,1732153841299,-151.0,0.00021917,2]
[342822429,1732153841310,-151.0,0.00021917,2]
[342822430,1732153841321,-151.0,0.00021917,2]
[342822431,1732153841330,-151.0,0.00021917,2]
[342822432,1732153841339,-151.0,0.00021917,2]
[342822433,1732153841350,-151.0,0.00021917,2]
[342822434,1732153841360,-151.0,0.00021917,2]
[342822435,1732153841371,-152.671977,0.00021917,2]
[342822436,1732153841380,-151.0,0.00021917,2]
[342822437,1732153841390,-209.05128091,0.00021917,2]
[342822438,1732153841400,-151.0,0.00021917,2]
[342822439,1732153841409,-160.902321,0.00021917,2]
[342822440,1732153841420,-293.451452,0.00021917,2]
[342822441,1732153841430,-152.298538,0.00021917,2]
[342822442,1732153841439,-4186.59,0.00021917,2]
[342822443,1732153841450,-409.98138313,0.00021917,2]
[342822444,1732153841459,-151.927985,0.00021917,2]
[342822445,1732153841469,-594.41977471,0.00021917,2]
[342822446,1732153841479,-157.330237,0.00021917,2]
[342822447,1732153841487,-500.0,0.00021917,2]
[342822448,1732153841498,-518.6797269,0.00021917,2]
[342822449,1732153841507,-512.88171812,0.00021917,2]
[342822450,1732153841516,-510.01386708,0.00021917,2]
[342822451,1732153841524,-500.0,0.00021917,2]
[342822452,1732153841533,-510.73875258,0.00021917,2]
[342822453,1732153841542,-335.31801888,0.00021917,2]
[342822454,1732153841551,-515.78973297,0.00021917,2]
[342822455,1732153841560,-194.11111769,0.00021917,2]
[342822456,1732153841569,-505.66153686,0.00021917,2]
[342822457,1732153841578,-516.03277569,0.00021917,2]
[342822458,1732153841587,-502.1470005,0.00021917,2]
[342822459,1732153841596,-502.59553791,0.00021917,2]
[342822460,1732153841606,-790.66,0.00021917,2]
[342822461,1732153841615,-194.99626684,0.00021917,2]
[342822462,1732153841624,-514.04523791,0.00021917,2]
[342822463,1732153841633,-497.83394346,0.00021917,2]
[342822464,1732153841644,-405.99678175,0.00021917,2]
[342822465,1732153841657,-2706.81,0.00021917,2]
[342822466,1732153841666,-151.0,0.00021917,2]
[342822467,1732153841675,-151.0,0.00021917,2]
[342822468,1732153841685,-151.0,0.00021917,2]
[342822469,1732153841695,-177.839301,0.00021917,2]
[342822470,1732153841704,-505.18721316,0.00021917,2]
[342822471,1732153841713,-217.70621366,0.00021917,2]
[342822472,1732153841725,-506.93951759,0.00021917,2]
[342822473,1732153841734,-229.633736,0.00021917,2]
[342822474,1732153841744,-532.80055379,0.00021917,2]
[342822475,1732153841754,-151.0,0.00021917,2]
[342822476,1732153841763,-151.0,0.00021917,2]
[342822477,1732153841772,-151.0,0.00021917,2]
[342822478,1732153841781,-190.307509,0.00021917,2]
[342822479,1732153841791,-511.38394035,0.00021917,2]
[342822480,1732153841800,-500.0,0.00021917,2]
[342822481,1732153841809,-500.0,0.00021917,2]
[342822482,1732153841820,-503.31580744,0.00021917,2]
[342822483,1732153841829,-500.0,0.00021917,2]
[342822484,1732153841839,-506.10083493,0.00021917,2]
[342822485,1732153841848,-151.0,0.00021917,2]
[342822486,1732153841857,-504.65512209,0.00021917,2]
[342822487,1732153841867,-151.744374,0.00021917,2]
[342822488,1732153841877,-151.0,0.00021917,2]
[342822489,1732153841887,-151.0,0.00021917,2]
[342822490,1732153841896,-151.0,0.00021917,2]
[342822491,1732153841905,-151.0,0.00021917,2]
[342822492,1732153841915,-151.0,0.00021917,2]
[342822493,1732153841924,-151.0,0.00021917,2]
[342822494,1732153841933,-500.0,0.00021917,2]
[342822495,1732153841942,-175.36303432,0.00021917,2]
[342822496,1732153841951,-271.229606,0.00021917,2]
[342822497,1732153841961,-151.0,0.00021917,2]
[342822498,1732153841971,-151.0,0.00021917,2]
[342822499,1732153841979,-151.0,0.00021917,2]
[342822500,1732153841988,-151.0,0.00021917,2]
[342822501,1732153841999,-514.08646417,0.00021917,2]
[342822502,1732153842007,-505.4201595,0.00021917,2]
[342822503,1732153842017,-500.0,0.00021917,2]
[342822504,1732153842026,-500.0,0.00021917,2]
[342822505,1732153842035,-500.0,0.00021917,2]
[342822506,1732153842044,-510.65036593,0.00021917,2]
[342822507,1732153842054,-511.96573459,0.00021917,2]
[342822508,1732153842063,-507.72341111,0.00021917,2]
[342822509,1732153842072,-504.13821183,0.00021917,2]
[342822510,1732153842081,-151.0,0.00021917,2]
[342822511,1732153842090,-151.0,0.00021917,2]
[342822512,1732153842099,-151.0,0.00021917,2]
[342822513,1732153842108,-151.0,0.00021917,2]
[342822514,1732153842117,-501.89919337,0.00021917,2]
[342822515,1732153842126,-526.2912813,0.00021917,2]
[342822516,1732153842135,-394.52199259,0.00021917,2]
[342822517,1732153842144,-517.82550856,0.00021917,2]
[342822518,1732153842237,-575.62279305,0.00021917,2]
[342822519,1732153842248,-503.50718277,0.00021917,2]
[342822520,1732153842257,-507.96200305,0.00021917,2]
[342822521,1732153842267,-500.0,0.00021917,2]
[342822522,1732153842276,-500.0,0.00021917,2]
[342822523,1732153842285,-509.02074191,0.00021917,2]
[342822524,1732153842294,-151.0,0.00021917,2]
[342822525,1732153842303,-295.378499,0.00021917,2]
[342822526,1732153842312,-503.22761907,0.00021917,2]
[342822527,1732153842321,-151.0,0.00021917,2]
[342822528,1732153842330,-151.0,0.00021917,2]
[342822529,1732153842340,-151.0,0.00021917,2]
[342822530,1732153842349,-501.49355046,0.00021917,2]
[342822531,1732153842358,-178.314178,0.00021917,2]
[342822532,1732153842367,-507.15121356,0.00021917,2]
[342822533,1732153842376,-500.0,0.00021973,2]
[342822534,1732153842385,-500.20116645,0.00021973,2]
[342822535,1732153842394,-500.0,0.00021973,2]
[342822536,1732153842403,-500.0,0.00021973,2]
[342822537,1732153842412,-500.0,0.00021973,2]
[342822538,1732153842421,-321.83047146,0.00021973,2]
[342822539,1732153842430,-500.0,0.00021973,2]
[342822540,1732153842439,-500.50743482,0.00021973,2]
[342822541,1732153842448,-353.54,0.00021989,3]
[342822542,1732153842457,-151.0,0.00021999,7]
[342822543,1732153842465,-151.0,0.00021999,7]
[342822544,1732153842474,-151.0,0.00021999,7]
[342822545,1732153842483,-151.0,0.00021999,7]
[342822546,1732153842494,-151.0,0.00021999,7]
[342822547,1732153842503,-175.519928,0.00021999,7]
[342822548,1732153842512,-188.467967,0.00021999,7]
[342822549,1732153842521,-508.03,0.00022,2]
[342822550,1732153842531,-155.742269,0.00022,7]
[342822551,1732153842540,-167.0,0.00022,2]
[342822552,1732153842549,-151.0,0.00022007,7]
[342822553,1732153842558,-151.0,0.00022115,7]
[342822554,1732153842567,-151.0,0.00022115,7]
[342822555,1732153842576,-151.0,0.00022144,7]
[342822556,1732153842585,-284.768618,0.00022145,7]
[342822557,1732153842594,-151.0,0.00022145,7]
[342822558,1732153842603,-192.30488,0.00022145,7]
[342822559,1732153842614,-192.30488,0.00022145,7]
[342822560,1732153842623,-151.0,0.00022145,7]